fUSD/lending_fUSD_20251013
["ID","MTS","AMOUNT","RATE_DAILY","PERIOD"]
[391107006,1760353842292,-911.0,0.00019,2]
[391107007,1760353842301,-103903.46547903,0.00019,2]
[391107008,1760353842310,-839572.44962549,0.00019,2]
[391107009,1760353842594,-1.6e-07,0.00019,2]
[391107010,1760353842605,-242258.36787449,0.00019,2]
[391107011,1760353842616,-94098.8312959,0.00019,2]
[391107012,1760353842625,-500.0,0.00019,2]
[391107013,1760353842635,-151.0,0.00019,2]
[391107014,1760353842643,-918.66953689,0.00019,2]
[391107015,1760353842653,-300.0,0.00019,2]
[391107016,1760353842664,-1592.56448,0.00019,2]
[391107018,1760353842673,-312.0,0.00019013,2]
[391107020,1760353842683,-168.0,0.00019017,2]
[391107023,1760353842692,-694.86,0.00019097,2]
[391107026,1760353842701,-474.51,0.00019097,2]
[391107029,1760353842711,-474.51,0.00019097,2]
[391107031,1760353842719,-474.51,0.00019097,2]
[391107033,1760353842729,-10097.743878,0.000191,2]
[391107035,1760353842738,-3029.3231634,0.000191,2]
[391107037,1760353842747,-3024.78,0.00019151,2]
[391107039,1760353842756,-235.06,0.00019178,2]
[391107040,1760353842765,-500.0,0.00019178,2]
[391107042,1760353842774,-152.13789588,0.00019178,2]
[391107044,1760353842783,-48756.08,0.00019178,2]
[391107046,1760353842793,-300.0,0.00019178,2]
[391107048,1760353842801,-300.0,0.00019178,2]
[391107050,1760353842810,-407.373776,0.00019178,2]
[391107052,1760353842820,-500.0,0.00019233,2]
[391107054,1760353842829,-500.01,0.00019274,2]
[391107056,1760353842839,-500.0,0.00019288,2]
[391107058,1760353842848,-10097.743878,0.000193,2]
[391107061,1760353842858,-3029.3231634,0.000193,2]
[391107063,1760353842867,-1432.46,0.00019304,2]
[391107065,1760353842878,-300.0,0.00019308,2]
[391107067,1760353842887,-312.0,0.00019337,2]
[391107069,1760353842897,-500.0,0.00019342,2]
[391107071,1760353842906,-500.0,0.00019397,2]
[391107073,1760353842917,-168.0,0.00019418,2]
[391107075,1760353842929,-312.0,0.00019422,2]
[391107077,1760353842938,-312.0,0.00019435,2]
[391107079,1760353842948,-1000.0,0.00019438,2]
[391107080,1760353842957,-500.0,0.00019452,2]
[391107082,1760353842967,-235.08,0.00019452,2]
[391107084,1760353842977,-10097.743878,0.000195,2]
[391107086,1760353842986,-3029.3231634,0.000195,2]
[391107089,1760353842996,-151.0,0.000195,7]
[391107091,1760353843006,-312.0,0.00019506,2]
[391107093,1760353843016,-500.0,0.00019507,2]
[391107095,1760353843026,-151.0,0.00019507,7]
[391107097,1760353843035,-151.0,0.00019511,7]
[391107099,1760353843045,-151.0,0.00019511,7]
[391107101,1760353843054,-151.0,0.00019511,7]
[391107103,1760353843063,-151.0,0.00019511,7]
[391107104,1760353843072,-151.0,0.00019511,7]
[391107106,1760353843082,-151.0,0.00019511,2]
[391107108,1760353843091,-151.0,0.00019511,7]
[391107110,1760353843100,-150.0,0.00019552,2]
[391107112,1760353843110,-500.0,0.00019562,2]
[391107114,1760353843119,-312.0,0.00019572,2]
[391107116,1760353843128,-151.0,0.00019585,7]
[391107119,1760353843138,-151.0,0.00019585,7]
[391107120,1760353843147,-152.249792,0.00019585,7]
[391107122,1760353843157,-151.0,0.00019585,7]
[391107125,1760353843167,-151.0,0.00019585,7]
[391107126,1760353843179,-1408.0,0.000196,2]
[391107128,1760353843188,-312.0,0.00019609,2]
[391107130,1760353843197,-418.75,0.00019644,2]
[391107132,1760353843206,-826.62,0.00019644,2]
[391107134,1760353843215,-413.39,0.00019644,2]
[391107136,1760353843224,-413.39,0.00019644,2]
[391107138,1760353843233,-151.0,0.00019644,7]
[391107141,1760353843244,-216.187648,0.00019644,7]
[391107143,1760353843254,-166.65,0.00019682,2]
[391107145,1760353843265,-1961.12110507,0.00019697,2]
[391107147,1760353843274,-10097.743878,0.000197,2]
[391107148,1760353843282,-2000.0,0.000197,2]
[391107150,1760353843291,-3029.3231634,0.000197,2]
[391107152,1760353843301,-312.0,0.00019739,2]
[391107154,1760353843310,-542.33412398,0.00019785,2]
[391107156,1760353843319,-1700.0,0.000198,7]
[391107159,1760353843329,-6977.83548879,0.00019833,2]
[391107161,1760353843338,-312.0,0.00019876,2]
[391107163,1760353843347,-371.54401327,0.0001988,2]
[391107164,1760353843356,-10097.743878,0.000199,2]
[391107166,1760353843366,-348.84653887,0.000199,2]
[391107168,1760353843375,-2300.0,0.000199,7]
[391107170,1760353843384,-312.0,0.00019904,2]
[391107172,1760353843393,-168.0,0.00019906,2]
[391107174,1760353843403,-1090.0,0.00019967,2]
[391107176,1760353843411,-1090.0,0.00019967,2]
[391107178,1760353843421,-500.30421878,0.00019973,2]
[391107180,1760353843431,-500.0,0.00019973,2]
[391107182,1760353843440,-305501.83539748,0.0001998,2]
[391107185,1760353843453,-14650.92852138,0.0001998,2]
[391107198,1760353843583,-169.654225,0.000195,7]
[391107200,1760353843603,-228.04679995,0.0001998,2]
[391107203,1760353843615,-48430.73725418,0.0001998,2]
[391107207,1760353843631,-250.63815963,0.0001998,2]
[391107211,1760353843642,-420.56660484,0.0001998,2]
[391107214,1760353843653,-2078.7681227,0.0001998,2]
[391107233,1760353845937,-12466.91709859,0.0001998,2]
[391107234,1760353845989,-667169.35228912,0.0001998,2]
[391107235,1760353845999,-151.0,0.0001998,7]
[391107236,1760353846008,-151.0,0.0001998,7]
[391107237,1760353846018,-151.0,0.0001998,7]
[391107238,1760353846027,-151.0,0.0001998,7]
[391107239,1760353846036,-151.0,0.0001998,7]
[391107240,1760353846045,-151.0,0.0001998,7]
[391107241,1760353846054,-151.0,0.0001998,7]
[391107242,1760353846064,-151.0,0.0001998,7]
[391107243,1760353846075,-151.0,0.0001998,7]
[391107244,1760353846086,-151.0,0.0001998,7]
[391107245,1760353846095,-151.0,0.0001998,7]
[391107246,1760353846104,-151.0,0.0001998,7]
[391107247,1760353846113,-170.026231,0.0001998,2]
[391107248,1760353846123,-301.831575,0.0001998,7]
[391107249,1760353846132,-151.0,0.0001998,7]
[391107250,1760353846142,-288.82853643,0.0001998,2]
[391107251,1760353846151,-1008.0,0.0002,5]
[391107252,1760353846160,-1000.0,0.0002,5]
[391107253,1760353846170,-1000.0,0.0002,5]
[391107254,1760353846179,-1000.0,0.0002,5]
[391107255,1760353846194,-15805.65623738,0.0002,14]
[391107256,1760353846203,-162.06325147,0.0002,5]
[391107257,1760353846212,-151.0,0.0002,7]
[391107258,1760353846222,-478.96561,0.0002,2]
[391107259,1760353846231,-5000.0,0.0002,2]
[391107260,1760353846241,-5000.0,0.0002,2]
[391107261,1760353846250,-277.35206752,0.0002,2]
[391107262,1760353846259,-200.0,0.0002,2]
[391107264,1760353846269,-500.0,0.00020033,2]
[391107265,1760353846278,-500.0,0.00020033,2]
[391107266,1760353846288,-474.51,0.00020056,2]
[391107267,1760353846297,-474.51,0.00020056,2]
[391107268,1760353846306,-479.45,0.00020056,2]
[391107269,1760353846316,-694.86,0.00020056,2]
[391107272,1760353846326,-694.86,0.00020056,2]
[391107274,1760353846339,-694.86,0.00020056,2]
[391107276,1760353846349,-694.86,0.00020056,2]
[391107277,1760353846358,-694.86,0.00020056,2]
[391107279,1760353846368,-694.86,0.00020056,2]
[391107281,1760353846381,-694.86,0.00020056,2]
[391107283,1760353846391,-254.97,0.00020056,2]
[391107285,1760353846401,-10097.743878,0.000201,2]
[391107287,1760353846410,-1000.0,0.00020116,2]
[391107289,1760353846420,-450.85,0.00020187,2]
[391107292,1760353846432,-10097.743878,0.000203,2]
[391107293,1760353846441,-1086.63,0.00020466,2]
[391107295,1760353846451,-500.85997773,0.00020521,2]
[391107298,1760353846460,-153.0,0.00020626,2]
[391107300,1760353846471,-153.0,0.00020626,2]
[391107302,1760353846480,-153.0,0.00020626,2]
[391107304,1760353846489,-153.0,0.00020626,2]
[391107306,1760353846498,-153.0,0.00020626,2]
[391107308,1760353846508,-153.0,0.00020626,2]
[391107310,1760353846517,-153.0,0.00020626,2]
[391107312,1760353846527,-153.0,0.00020626,2]
[391107313,1760353846536,-153.0,0.00020626,2]
[391107316,1760353846545,-153.0,0.00020626,2]
[391107318,1760353846555,-153.0,0.00020626,2]
[391107320,1760353846565,-2241.28126294,0.00020628,2]
[391107322,1760353846579,-153.0,0.0002063,2]
[391107324,1760353846589,-153.0,0.0002063,2]
[391107326,1760353846598,-153.0,0.0002063,2]
[391107328,1760353846607,-153.0,0.0002063,2]
[391107330,1760353846617,-153.0,0.0002063,2]
[391107332,1760353846626,-153.0,0.0002063,2]
[391107334,1760353846635,-153.0,0.0002063,2]
[391107336,1760353846645,-153.0,0.0002063,2]
[391107337,1760353846657,-153.0,0.0002063,2]
[391107340,1760353846667,-153.0,0.0002063,2]
[391107342,1760353846676,-153.0,0.0002063,2]
[391107344,1760353846690,-204.98117835,0.00020653,2]
[391107346,1760353846699,-166.65,0.00020657,2]
[391107348,1760353846709,-154.77803713,0.000207,2]
[391107350,1760353846719,-6977.83548879,0.00020766,2]
[391107352,1760353846728,-1000.0,0.00020795,2]
[391107354,1760353846738,-9143.21,0.00020951,5]
[391107356,1760353846747,-150.99,0.00020951,2]
[391107358,1760353846757,-277.84,0.00020951,2]
[391107360,1760353846766,-188.3323064,0.00020999,2]
[391107362,1760353846776,-1592.56449,0.00021,2]
[391107364,1760353846786,-1090.0,0.00021018,2]
[391107366,1760353846796,-1090.0,0.00021018,2]
[391107368,1760353846805,-277.35206752,0.000211,2]
[391107370,1760353846815,-268.48,0.00021249,2]
[391107372,1760353846824,-150.0,0.00021337,2]
[391107374,1760353846834,-150.0,0.00021363,2]
[391107376,1760353846844,-150.0,0.00021363,2]
[391107378,1760353846853,-10444.125956,0.0002137,7]
[391107380,1760353846862,-931.66259669,0.0002137,7]
[391107382,1760353846871,-5137.00000004,0.0002137,7]
[391107384,1760353846881,-25335.6814148,0.0002137,7]
[391107386,1760353846890,-1251.0193573,0.0002137,7]
[391107388,1760353846900,-641.43792491,0.0002137,7]
[391107390,1760353846909,-14602.2537649,0.0002137,7]
[391107392,1760353846918,-4873.88163356,0.0002137,7]
[391107394,1760353846927,-151.0,0.0002137,7]
[391107395,1760353846941,-151.0,0.0002137,7]
[391107397,1760353846951,-165.139227,0.0002137,7]
[391107400,1760353846961,-150.0,0.00021387,2]
[391107402,1760353846971,-150.0,0.00021387,2]
[391107404,1760353846980,-150.0,0.00021387,2]
[391107405,1760353846989,-150.0,0.00021387,2]
[391107408,1760353846999,-6235.1016022,0.00021397,2]
[391107410,1760353847008,-2334.4659178,0.00021419,2]
[391107412,1760353847018,-168.14,0.00021425,2]
[391107414,1760353847028,-413.39,0.00021425,2]
[391107416,1760353847037,-150.0,0.00021425,2]
[391107418,1760353847047,-150.0,0.00021425,2]
[391107420,1760353847056,-150.0,0.00021425,2]
[391107422,1760353847065,-546.38,0.00021425,2]
[391107424,1760353847075,-150.0,0.00021425,2]
[391107426,1760353847085,-150.0,0.00021425,2]
[391107427,1760353847094,-335.62,0.00021425,2]
[391107428,1760353847104,-546.38,0.00021425,2]
[391107429,1760353847113,-151.0,0.00021448,7]
[391107430,1760353847131,-151.0,0.00021448,7]
[391107431,1760353847145,-1432.46,0.00021448,2]
[391107432,1760353847156,-2521.44142081,0.00021558,2]
[391107433,1760353847166,-193.85918826,0.00021637,9]
[391107434,1760353847176,-151.0,0.00021654,7]
[391107435,1760353847191,-151.0,0.00021654,7]
[391107436,1760353847201,-6977.83548879,0.00021699,2]
[391107437,1760353847211,-381.97258423,0.000217,2]
[391107438,1760353847221,-1425.0,0.00021712,2]
[391107439,1760353847231,-700.0,0.0002187,2]
[391107441,1760353847240,-1425.0,0.0002187,2]
[391107475,1760353847546,-300.0,0.00021917,2]
[391107477,1760353847557,-10000.0,0.00021917,2]
[391107480,1760353847566,-5000.0,0.00021918,2]
[391107482,1760353847576,-151.6758005,0.00021918,7]
[391107484,1760353847591,-2247.59,0.00021918,30]
[391107486,1760353847600,-151.0,0.00021918,7]
[391107488,1760353847609,-1391.239219,0.00021934,2]
[391107490,1760353847619,-520.8897541,0.00021961,2]
[391107492,1760353847628,-1000.5769,0.00021999,2]
[391107494,1760353847639,-1793.2534922,0.00022,2]
[391107496,1760353847648,-196.95,0.00022,2]
[391107498,1760353847659,-151.0,0.00022,7]
[391107500,1760353847668,-151.0,0.00022,7]
[391107502,1760353847677,-7325.53,0.00022,7]
[391107504,1760353847691,-1090.0,0.00022068,2]
[391107505,1760353847701,-1090.0,0.00022068,2]
[391107508,1760353847711,-413.39,0.0002211,2]
[391107510,1760353847721,-150.0,0.0002211,2]
[391107511,1760353847730,-413.39,0.0002211,2]
[391107514,1760353847740,-413.39,0.0002211,2]
[391107516,1760353847751,-175.9,0.0002211,2]
[391107518,1760353847761,-413.39,0.0002211,2]
[391107520,1760353847771,-277.35206752,0.000222,2]
[391107522,1760353847780,-168.14,0.00022247,2]
[391107524,1760353847790,-546.38,0.00022247,2]
[391107526,1760353847799,-168.14,0.00022247,2]
[391107528,1760353847815,-546.38,0.00022247,2]
[391107530,1760353847826,-823.88,0.00022247,2]
[391107532,1760353847835,-168.14,0.00022247,2]
[391107535,1760353847845,-168.14,0.00022247,2]
[391107537,1760353847855,-413.39,0.00022247,2]
[391107539,1760353847864,-168.14,0.00022247,2]
[391107541,1760353847874,-546.38,0.00022247,2]
[391107543,1760353847883,-404.28,0.00022247,2]
[391107545,1760353847894,-167.64,0.00022247,2]
[391107547,1760353847905,-546.38,0.00022247,2]
[391107549,1760353847914,-546.38,0.00022247,2]
[391107551,1760353847924,-546.38,0.00022247,2]
[391107553,1760353847936,-546.38,0.00022247,2]
[391107555,1760353847946,-546.38,0.00022247,2]
[391107557,1760353847955,-448.08,0.00022247,2]
[391107559,1760353847965,-204.98117835,0.00022405,2]
[391107561,1760353847975,-2801.60157868,0.00022488,2]
[391107563,1760353847985,-154.77803713,0.000225,2]
[391107565,1760353847995,-6977.83548879,0.00022632,2]
[391107567,1760353848008,-1000.0,0.00022879,2]
[391107569,1760353848018,-160.18088681,0.00023,2]
[391107571,1760353848028,-152.0,0.00023,7]
[391107573,1760353848038,-165.0,0.00023,7]
[391107575,1760353848048,-1592.56448,0.00023,2]
[391107577,1760353848063,-188.3323064,0.00023099,2]
[391107579,1760353848073,-1090.0,0.00023172,2]
[391107581,1760353848083,-1090.0,0.00023172,2]
[391107583,1760353848092,-10000.0,0.00023287,4]
[391107585,1760353848102,-7325.53,0.000233,7]
[391107586,1760353848111,-277.35206752,0.000233,2]
[391107587,1760353848121,-188.0,0.00023315,2]
[391107588,1760353848130,-193.85918826,0.00023375,14]
[391107589,1760353848140,-2000.0,0.000234,2]
[391107590,1760353848151,-3081.76173655,0.00023419,2]
[391107592,1760353848161,-5000.0,0.000235,10]
[391107593,1760353848172,-6977.83548879,0.00023565,2]
[391107594,1760353848183,-371.54401325,0.00023589,2]
[391107595,1760353848193,-1432.46,0.00023593,2]
[391107596,1760353848203,-150.0,0.00023835,2]
[391107597,1760353848215,-638.91,0.00023836,2]
[391107598,1760353848224,-1000.0,0.00023879,2]
[391107599,1760353848234,-160.0,0.00024,2]
[391107600,1760353848243,-200.0,0.000241,7]
[391107601,1760353848253,-223.7284933,0.00024111,2]
[391107602,1760353848263,-204.98117835,0.00024158,2]
[391107603,1760353848273,-152.0,0.00024164,7]
[391107604,1760353848282,-1967.412369,0.000243,2]
[391107605,1760353848294,-154.77803713,0.000243,2]
[391107606,1760353848304,-1090.0,0.0002433,2]
[391107607,1760353848314,-1090.0,0.0002433,2]
[391107608,1760353848323,-3361.92189442,0.00024349,2]
[391107609,1760353848333,-151.0,0.000244,7]
[391107610,1760353848343,-151.0,0.000244,7]
[391107611,1760353848351,-277.35206752,0.000244,2]
[391107612,1760353848360,-6977.83548879,0.00024498,2]
[391107613,1760353848369,-7325.53,0.000245,7]
[391107614,1760353848378,-151.0,0.000245,7]
[391107615,1760353848387,-151.0,0.000245,7]
[391107616,1760353848395,-152.338808,0.000245,7]
[391107617,1760353848403,-151.0,0.00024557,2]
[391107618,1760353848412,-10000.0,0.00024657,6]
[391107619,1760353848422,-151.25,0.00024658,2]
[391107620,1760353848433,-1000.0,0.00024658,2]
[391107621,1760353848443,-151.0,0.000247,7]
[391107622,1760353848453,-151.0,0.000247,7]
[391107623,1760353848462,-151.0,0.000247,7]
[391107624,1760353848472,-2369892.11051411,0.000247,2]
[391107625,1760353848483,-152.0,0.00024735,3]
[391107626,1760353848492,-218.22397976,0.0002479,2]
[391107627,1760353848502,-5000.0,0.00024798,2]
[391107628,1760353848513,-151.0,0.000248,7]
[391107629,1760353848523,-151.0,0.000248,7]
[391107630,1760353848532,-151.0,0.000248,7]
[391107631,1760353848542,-263.228712,0.000248,7]
[391107632,1760353848552,-151.0,0.000248,7]
[391107633,1760353848563,-175.436564,0.000248,7]
[391107634,1760353848578,-2900.0,0.000248,9]
[391107635,1760353848588,-614238.588276,0.000248,3]
[391107636,1760353848597,-150.0,0.00024873,2]
[391107637,1760353848610,-150.0,0.00024873,2]
[391107638,1760353848619,-1000.0,0.00024879,2]
[391107639,1760353848629,-151.0,0.000249,7]
[391107640,1760353848638,-500.0,0.000249,9]
[391107641,1760353848651,-176876.643292,0.000249,3]
[391107642,1760353848662,-162.14,0.00024907,2]
[391107643,1760353848672,-1000.0,0.00025,20]
[391107644,1760353848683,-1000.0,0.00025,20]
[391107645,1760353848693,-1000.0,0.00025,20]
[391107646,1760353848702,-1000.0,0.00025,20]
[391107647,1760353848712,-1000.0,0.00025,20]
[391107648,1760353848722,-1000.0,0.00025,20]
[391107649,1760353848732,-1000.0,0.00025,20]
[391107650,1760353848741,-1000.0,0.00025,20]
[391107651,1760353848751,-1000.0,0.00025,20]
[391107652,1760353848760,-1000.0,0.00025,20]
[391107653,1760353848770,-1000.0,0.00025,20]
[391107654,1760353848780,-1000.0,0.00025,20]
[391107655,1760353848789,-1000.0,0.00025,20]
[391107656,1760353848798,-1000.0,0.00025,20]
[391107657,1760353848808,-1000.0,0.00025,20]
[391107658,1760353848817,-1000.0,0.00025,20]
[391107659,1760353848827,-1000.0,0.00025,20]
[391107660,1760353848837,-1000.0,0.00025,20]
[391107661,1760353848847,-1000.0,0.00025,20]
[391107662,1760353848856,-1000.0,0.00025,20]
[391107663,1760353848865,-1000.0,0.00025,20]
[391107664,1760353848875,-1000.0,0.00025,20]
[391107665,1760353848884,-1000.0,0.00025,20]
[391107666,1760353848893,-1000.0,0.00025,20]
[391107667,1760353848903,-1000.0,0.00025,20]
[391107668,1760353848912,-1000.0,0.00025,20]
[391107669,1760353848922,-1000.0,0.00025,20]
[391107670,1760353848931,-1000.0,0.00025,20]
[391107671,1760353848943,-1000.0,0.00025,20]
[391107672,1760353848954,-1000.0,0.00025,20]
[391107673,1760353848964,-1000.0,0.00025,20]
[391107674,1760353848973,-1000.0,0.00025,20]
[391107675,1760353848983,-346.59853425,0.00025,20]
[391107676,1760353848993,-33800.0,0.00025,30]
[391107677,1760353849003,-3011.7845468,0.00025,120]
[391107678,1760353849013,-1592.56449,0.00025,2]
[391107679,1760353849024,-399.99,0.000251,7]
[391107680,1760353849033,-193.85918826,0.00025112,19]
[391107681,1760353849043,-2247.59,0.00025141,30]
[391107682,1760353849052,-188.3323064,0.00025198,2]
[391107683,1760353849062,-3642.08205229,0.0002528,3]
[391107684,1760353849072,-350.13943015,0.00025421,2]
[391107685,1760353849082,-250.0,0.00025421,2]
[391107686,1760353849091,-6977.83548879,0.00025431,2]
[391107687,1760353849100,-277.35206752,0.000255,2]
[391107688,1760353849111,-150.27,0.00025545,2]
[391107689,1760353849121,-175.87,0.00025545,2]
[391107690,1760353849132,-1090.0,0.00025547,2]
[391107691,1760353849143,-1090.0,0.00025547,2]
[391107692,1760353849154,-7325.53,0.000256,7]
[391107693,1760353849165,-1432.46,0.00025738,120]
[391107694,1760353849177,-316.0,0.00025752,15]
[391107695,1760353849189,-2000.82860436,0.00025879,2]
[391107696,1760353849198,-204.98117835,0.0002591,2]
[391107697,1760353849208,-350.0,0.00025968,2]
[391107698,1760353849218,-79371.18217033,0.00026,2]
[391107699,1760353849228,-654.74926823,0.00026,2]
[391107700,1760353849238,-500.0,0.00026,120]
[391107701,1760353849248,-2000.0,0.00026,120]
[391107702,1760353849258,-500.0,0.00026,120]
[391107703,1760353849268,-10000.0,0.00026027,8]
[391107704,1760353849278,-600.0,0.00026027,2]
[391107705,1760353849288,-152.0,0.00026073,4]
[391107706,1760353849298,-200.0,0.000261,7]
[391107707,1760353849308,-154.77803713,0.000261,2]
[391107708,1760353849317,-666.63,0.00026167,7]
[391107709,1760353849327,-666.63,0.00026167,7]
[391107710,1760353849337,-666.63,0.00026167,7]
[391107711,1760353849346,-666.63,0.00026167,7]
[391107712,1760353849356,-3922.24221015,0.0002621,5]
[391107713,1760353849366,-6977.83548879,0.00026364,2]
[391107714,1760353849378,-666.63,0.00026441,7]
[391107715,1760353849388,-666.63,0.00026441,7]
[391107716,1760353849398,-550.9760459,0.00026516,2]
[391107717,1760353849407,-300.0,0.00026575,7]
[391107718,1760353849417,-600.0,0.00026575,2]
[391107719,1760353849427,-277.35206752,0.000266,2]
[391107720,1760353849437,-450.85,0.00026676,2]
[391107721,1760353849447,-666.63,0.00026715,7]
[391107722,1760353849456,-666.63,0.00026715,7]
[391107723,1760353849467,-1090.0,0.00026824,2]
[391107724,1760353849476,-232.53102591,0.0002685,23]
[391107725,1760353849486,-150.45262242,0.0002687,7]
[391107726,1760353849495,-500.0,0.000269,9]
[391107727,1760353849505,-666.63,0.00026989,7]
[391107728,1760353849514,-666.63,0.00026989,7]
[391107729,1760353849523,-177.9610346,0.00027,20]
[391107730,1760353849533,-881.89646,0.00027,120]
[391107731,1760353849545,-551.225252,0.00027,2]
[391107732,1760353849557,-1592.56448,0.00027,2]
[391107733,1760353849567,-2000.0,0.000271,2]
[391107734,1760353849577,-600.0,0.00027123,2]
[391107735,1760353849592,-4202.40236802,0.0002714,7]
[391107736,1760353849602,-12248.11421232,0.00027163,2]
[391107737,1760353849611,-666.63,0.00027263,7]
[391107738,1760353849621,-666.63,0.00027263,7]
[391107739,1760353849633,-188.3323064,0.00027297,2]
[391107740,1760353849643,-371.54401325,0.00027297,2]
[391107741,1760353849653,-6977.83548879,0.00027297,2]
[391107742,1760353849666,-270.10055213,0.00027297,5]
[391107743,1760353849676,-1477.4778094,0.00027297,2]
[391107744,1760353849687,-445.42367606,0.00027297,2]
[391107745,1760353849697,-159.0,0.000273,10]
[391107746,1760353849706,-159.0,0.000273,10]
[391107747,1760353849716,-300.0,0.00027356,2]
[391107748,1760353849726,-3045.31324424,0.00027397,2]
[391107749,1760353849736,-500.0,0.00027397,2]
[391107750,1760353849746,-500.0,0.00027397,2]
[391107751,1760353849756,-500.0,0.00027397,2]
[391107752,1760353849768,-500.0,0.00027397,2]
[391107753,1760353849778,-500.0,0.00027397,2]
[391107754,1760353849788,-615.92464567,0.00027397,2]
[391107755,1760353849797,-500.0,0.00027397,2]
[391107756,1760353849807,-500.0,0.00027397,2]
[391107757,1760353849817,-500.0,0.00027397,2]
[391107758,1760353849827,-500.0,0.00027397,2]
[391107759,1760353849836,-500.0,0.00027397,2]
[391107760,1760353849846,-500.0,0.00027397,2]
[391107761,1760353849857,-500.0,0.00027397,2]
[391107762,1760353849869,-500.0,0.00027397,2]
[391107763,1760353849879,-500.0,0.00027397,2]
[391107764,1760353849888,-427.73251421,0.00027397,2]
[391107765,1760353849898,-500.0,0.00027397,2]
[391107766,1760353849908,-500.0,0.00027397,2]
[391107767,1760353849918,-500.0,0.00027397,2]
[391107768,1760353849928,-500.0,0.00027397,2]
[391107769,1760353849939,-525.02366105,0.00027397,2]
[391107770,1760353849948,-500.0,0.00027397,2]
[391107771,1760353849958,-500.0,0.00027397,2]
[391107772,1760353850063,-534.60995858,0.00027397,2]
[391107773,1760353850073,-954.15,0.00027397,2]
[391107774,1760353850083,-954.15,0.00027397,2]
[391107775,1760353850093,-954.15,0.00027397,2]
[391107776,1760353850102,-954.15,0.00027397,2]
[391107777,1760353850113,-954.15,0.00027397,2]
[391107778,1760353850127,-954.15,0.00027397,2]
[391107779,1760353850136,-954.15,0.00027397,2]
[391107780,1760353850147,-954.15,0.00027397,2]
[391107781,1760353850158,-954.15,0.00027397,2]
[391107782,1760353850169,-954.15,0.00027397,2]
[391107783,1760353850180,-954.15,0.00027397,2]
[391107784,1760353850191,-954.15,0.00027397,2]
[391107785,1760353850201,-954.15,0.00027397,2]
[391107786,1760353850211,-954.15,0.00027397,2]
[391107787,1760353850220,-954.15,0.00027397,2]
[391107788,1760353850230,-954.15,0.00027397,2]
[391107789,1760353850246,-954.15,0.00027397,2]
[391107790,1760353850259,-954.15,0.00027397,2]
[391107791,1760353850268,-954.15,0.00027397,2]
[391107792,1760353850277,-954.15,0.00027397,2]
[391107793,1760353850286,-954.15,0.00027397,2]
[391107794,1760353850295,-954.15,0.00027397,2]
[391107795,1760353850304,-954.15,0.00027397,2]
[391107796,1760353850314,-954.35925135,0.00027397,2]
[391107797,1760353850323,-500.0,0.00027397,2]
[391107798,1760353850332,-500.0,0.00027397,2]
[391107799,1760353850341,-500.0,0.00027397,2]
[391107800,1760353850351,-500.0,0.00027397,2]
[391107801,1760353850360,-500.0,0.00027397,2]
[391107802,1760353850369,-507.04362107,0.00027397,2]
[391107803,1760353850379,-500.0,0.00027397,2]